Cogmind - Beta 15 @@@ ROGUE MODE // 2025.07.02 @ 13:16:05 Player: Aaron Result: Destroyed by S-10 Pest with Light Assault Rifle Performance ------------- Evolutions (0) 0 Regions Visited (2) 400 Robots Destroyed (34) 170 Value Destroyed (721) 721 Prototype IDs (2) 40 Alien Tech Used (0) 0 Bonus (0) 0 TOTAL SCORE: 1331 Bonus ------- None Cogmind --------- Core Integrity 0/250 Matter 294/300 Energy 250/250 System Corruption 0% Temperature Cool (0) Movement Walking (120) Location -10/Mines Parts ------- > --- POWER (1) -------- Ion Engine > --- PROPULSION (2) --- Aluminum Leg Aluminum Leg > --- UTILITY (2) ------ Small Storage Unit Transport Network Coupler > --- WEAPON (2) ------- Light Assault Rifle Light Assault Rifle > --- INVENTORY (8) ---- Ion Engine Aluminum Leg Signal Interpreter Light Armor Plating Small Laser Small Laser Datajack Peak State ------------ > --- POWER ------------ Ion Engine > --- PROPULSION ------- Light Treads Light Treads > --- UTILITY ---------- Small Storage Unit Improved Terrain Scanner > --- WEAPON ----------- Assault Rifle Light Assault Rifle > --- INVENTORY -------- Light Ion Engine [Rating: 9] Favorites ----------- Power Ion Engine Engine Ion Engine Propulsion Aluminum Leg Treads Light Treads Leg Aluminum Leg Utility Small Storage Unit Device Improved Terrain Scanner Storage Small Storage Unit Processor Transport Network Coupler Protection Light Armor Plating Weapon Light Assault Rifle Energy Gun Small Laser Ballistic Gun Light Assault Rifle Ballistic Cannon Light Cannon Special Melee Weapon Datajack Build | -11 -10 -10 ------- Run | Yrd Mat Min Slots Evolved . | . . . Power . | . . . Propulsion . | . . . Utility . | . . . Weapon . | . . . Parts Attached 21 | 8 9 4 Power 3 | 2 1 . Engine 3 | 2 1 . Core . | . . . Reactor . | . . . Propulsion 5 | 2 2 1 Treads 2 | 2 . . Leg 3 | . 2 1 Wheel . | . . . Hover . | . . . Flight . | . . . Utility 5 | 2 3 . Device 2 | 1 1 . Storage 1 | 1 . . Processor 1 | . 1 . Hackware . | . . . Protection 1 | . 1 . Artifact . | . . . Weapon 8 | 2 3 3 Energy Gun 1 | . 1 . Energy Cannon . | . . . Ballistic Gun 5 | 2 . 3 Ballistic Cannon 1 | . 1 . Launcher . | . . . Special Weapon . | . . . Impact Weapon . | . . . Slashing Weapon . | . . . Piercing Weapon . | . . . Special Melee Weapon 1 | . 1 . Unidentified Prototypes . | . . . Parts Lost 5 | . 5 . Power . | . . . Propulsion 2 | . 2 . Utility 1 | . 1 . Weapon 2 | . 2 . Highest Loss Streak 4 | . 4 . To Critical Strikes . | . . . Average Backups 5 | . 5 7 Power 1 | . 1 1 Propulsion . | . . 1 Utility 1 | . 1 2 Weapon . | . . 1 Tool/Special . | . . . Unused Backups 3 | . . 3 Power . | . . . Propulsion 1 | . . 1 Utility 1 | . . 1 Weapon 1 | . . 1 Tool/Special . | . . . Average Slot Usage (%) 97 | . 96 99 Engine 14 | . 14 14 Treads 11 | . 15 . Leg 14 | . 10 28 Device 2 | . 3 . Storage 14 | . 14 14 Processor 10 | . 9 14 Energy Gun 5 | . 6 5 Ballistic Gun 16 | . 15 22 Ballistic Cannon 3 | . 4 . Special Melee Weapon 1 | . 1 . Peak Build Rating 9 | 9 9 7 Average Rating 7 | 6 7 6 On Entrance 5 | . 9 7 Naked Turns . | . . . Heaviest Build 18 | 14 18 12 Greatest Support 40 | 40 40 20 Greatest Overweight (x) 4 | 4 3 . Average Overweight (x) . | . . . Largest Inventory Capacity 8 | 8 8 8 Average Capacity 7 | 7 8 8 Most Carried 8 | 1 8 8 Average Carried 5 | . 5 7 Final Capacity 8 | 8 8 8 Final Carried 8 | 1 8 7 Class Distribution -------------------- 55% | Mutant 44% | Scavenger-Mutant Dominant Class ---------------- Mutant | -10/Materials Scavenger-Mutant | -10/Mines Resources | -11 -10 -10 ----------- Run | Yrd Mat Min Matter Collected 933 | 336 498 99 Remotely . | . . . Salvage Created 1036 | 140 803 93 Parts 63 | 10 40 13 Haulers Intercepted 2 | . 2 . Recyclers Shooed 3 | 1 1 1 Parts Field Recycled . | . . . Retrieved Matter . | . . . Parts Self-Destructed . | . . . Prevented . | . . . Kills | -11 -10 -10 ------- Run | Yrd Mat Min Combat Hostiles Destroyed 22 | . 16 6 Guns 18 | . 12 6 Cannons 4 | . 4 . Classes Destroyed 8 | 2 5 1 Worker 1 | . 1 . Builder 2 | . 2 . Tunneler 4 | 4 . . Hauler 2 | . 2 . Recycler 2 | 1 1 . Watcher 1 | . 1 . Swarmer 6 | . . 6 Grunt 16 | . 16 . Best Kill Streak 7 | 3 7 3 Combat Bots Only 3 | . 3 3 Max Kills in Single Turn 1 | 1 1 1 Gunslinging . | . . . Exploded . | . . . Melee . | . . . Uniques/NPCs Destroyed . | . . . Combat | -11 -10 -10 -------- Run | Yrd Mat Min Hostile Shots Fired 159 | . 120 39 Missed 40 | . 30 10 Hits 119 | . 90 29 Projectile 119 | . 90 29 Damage Taken 1262 | . 1024 238 Core 252 | . 192 60 Absorbed by Shields . | . . . Regen/Repaired (Parts) 78 | . 78 . Core Remaining (%) 100 | 100 . . Volleys Fired 125 | 17 84 24 Largest 2 | 2 2 2 Hottest 60 | 40 60 60 Shots Fired 242 | 34 160 48 Gun 195 | 34 113 48 Cannon 47 | . 47 . Launcher . | . . . Special . | . . . Kinetic 215 | 34 136 45 Thermal 27 | . 24 3 Explosive . | . . . Electromagnetic . | . . . Robot Hit Streak 12 | 7 11 12 Robot Miss Streak 5 | 3 5 4 Penetration Max . | . . . Secondary Targets 2 | . . 2 Max Gunslinging Chain 1 | . . 1 Shots Hit Robots 152 | 20 106 26 Core Hits 56 | 8 39 9 Critical Kills . | . . . Critical Parts Destroyed . | . . . Critical Strikes 1 | . 1 . Blast 1 | . 1 . Melee Attacks 8 | . 8 . Impact . | . . . Slashing . | . . . Piercing . | . . . Sneak Attacks 8 | . 8 . Combat Hostiles . | . . . Follow-up Attacks . | . . . Damage Inflicted 1716 | 222 1255 239 Guns 1259 | 222 798 239 Cannons 457 | . 457 . Explosions . | . . . Melee . | . . . Ramming . | . . . Kinetic 1551 | 222 1122 207 Thermal 165 | . 133 32 Explosive . | . . . Electromagnetic . | . . . Impact . | . . . Slashing . | . . . Piercing . | . . . Highest Corruption . | . . . Average Corruption . | . . . Corruption Purged . | . . . Corruption Blocked . | . . . Overload Shots . | . . . Overflow Damage . | . . . Projectiles . | . . . Explosions . | . . . Melee . | . . . Knockbacks 7 | . 7 . Impact . | . . . Kinetic 7 | . 7 . Secondary . | . . . Self-Inflicted Damage . | . . . Shots . | . . . Rammed . | . . . Targets Rammed . | . . . Kicked . | . . . Crushed . | . . . Highest Temperature 132 | . 132 20 Average Temperature 30 | . 30 15 Received Heat Transfer 555 | . 555 . Siege Activations . | . . . Martial Activations . | . . . Shielding Activations . | . . . Robots Disrupted . | . . . Combat Hostiles . | . . . Robots Corrupted . | . . . Combat Hostiles . | . . . Parts Fried . | . . . Impact Corruptions . | . . . Robots Melted . | . . . Combat Hostiles . | . . . Parts Melted . | . . . Heat Transferred 375 | . 300 75 Parts Sabotaged . | . . . Parts Stolen . | . . . Parts Stripped . | . . . Power Chain Reactions . | . . . Alert | -11 -10 -10 ------- Run | Yrd Mat Min Maximum Alert Level . | . . . Low Security (%) 100 | 100 100 100 Level 1 . | . . . Level 2 . | . . . Level 3 . | . . . Level 4 . | . . . Level 5 . | . . . High Security . | . . . Max Security . | . . . Peak Influence 184 | 10 184 110 Initial 12 | . . 12 Average 53 | 1 67 34 Influence Increases 691 | 25 496 170 Destroy 0b10 Robot/C 440 | . 320 120 Destroy 0b10 Robot/NC 60 | 25 35 . Destroy Leader 86 | . 66 20 Successful Hack 30 | . 30 . Disable Machine 30 | . 30 . Lose Combat Pursuer 45 | . 15 30 Influence Decreases 601 | 25 464 112 Entered New Map 20 | . . 20 Time Decay 381 | 25 264 92 Lost Part 50 | . 50 . Purge Threat 150 | . 150 . Squads Dispatched 5 | . 5 . Investigation 4 | . 4 . Extermination . | . . . Reinforcement 1 | . 1 . Assault . | . . . Garrison . | . . . Intercept . | . . . Searches Triggered . | . . . Construction Impeded . | . . . Haulers Reinforced . | . . . Active Scanning Responses . | . . . Cargo Convoy Interrupts . | . . . Stealth | -11 -10 -10 --------- Run | Yrd Mat Min Distress Signals . | . . . Communications Jammed . | . . . Distress Signals . | . . . Times Spotted 35 | . 24 11 Peak Tracking Total 4 | . 4 3 Tactical Retreats 2 | . 1 1 Traps | -11 -10 -10 ------- Run | Yrd Mat Min Traps Triggered 2 | . 2 . Indirectly . | . . . Trap Hack Attempts . | . . . Triggered . | . . . Disarmed . | . . . Reprogrammed . | . . . Reused . | . . . Traps Extracted . | . . . Installed . | . . . Triggered . | . . . Machines | -11 -10 -10 ---------- Run | Yrd Mat Min Machines Disabled 2 | . 2 . Max in Single Turn 2 | . 2 . Machines Repaired . | . . . Machines Dismantled . | . . . Machines Sabotaged . | . . . Overloaded Fab Kills . | . . . Hacking | -11 -10 -10 --------- Run | Yrd Mat Min Machines Accessed 8 | . 8 . Terminals 6 | . 6 . Fabricators . | . . . Repair Stations 1 | . 1 . Recycling Units 1 | . 1 . Scanalyzers . | . . . Garrison Access . | . . . Total Hacks 34 | . 34 . Successful 22 | . 22 . Failed 12 | . 12 . Catastrophic 2 | . 2 . Database Lockouts . | . . . Manual 17 | . 17 . Terminals 23 | . 23 . Fabricators . | . . . Repair Stations 3 | . 3 . Recycling Units 8 | . 8 . Scanalyzers . | . . . Garrison Access . | . . . Terminal Hacks 9 | . 9 . Robot Analysis 1 | . 1 . Prototype ID Bank 1 | . 1 . Emergency Access Points 1 | . 1 . Alert Level 1 | . 1 . Unreport Threat 1 | . 1 . Transport Status 1 | . 1 . Hauler Manifests 1 | . 1 . Zone Layout 2 | . 2 . Fabricator Hacks . | . . . Repair Station Hacks 2 | . 2 . Scan Component 1 | . 1 . Repair 1 | . 1 . Recycling Unit Hacks 3 | . 3 . Process 1 | . 1 . Report Inventory 1 | . 1 . Retrieve Matter 1 | . 1 . Scanalyzer . | . . . Garrison Access Hacks . | . . . Unauthorized Hacks 8 | . 8 . Terminals 3 | . 3 . Botnet 2 | . 2 . Sabotage 1 | . 1 . Fabricators . | . . . Repair Stations 1 | . 1 . Mechanics 1 | . 1 . Recycling Units 4 | . 4 . Monitor 1 | . 1 . Reject 1 | . 1 . Recyclers 1 | . 1 . Mask 1 | . 1 . Scanalyzers . | . . . Garrison Access . | . . . Data Cores Recovered . | . . . Used . | . . . Hacking Detections 8 | . 8 . Full Trace Events 4 | . 4 . Feedback Events . | . . . Feedback Blocked . | . . . Robot Schematics Acquired . | . . . Robots Built . | . . . Authchips . | . . . Time . | . . . Total Robot Build Rating . | . . . Part Schematics Acquired . | . . . Parts Built . | . . . Authchips . | . . . Time . | . . . Total Part Build Rating . | . . . Parts Repaired 1 | . 1 . Time 26 | . 26 . Parts Recycled . | . . . Recycled Matter 171 | . 171 . Retrieved Matter 404 | . 404 . Retrieved Components . | . . . Parts Scanalyzed . | . . . Part Schematics Acquired . | . . . Parts Damaged . | . . . Bothacking | -11 -10 -10 ------------ Run | Yrd Mat Min Used RIF Installer . | . . . Robots Hacked 4 | . 4 . Non-combat 4 | . 4 . Combat . | . . . Robot Hacks Applied 7 | . 7 . no_distress 4 | . 4 . find_recycling 1 | . 1 . find_station 1 | . 1 . check_alert 1 | . 1 . Relay Couplers Released . | . . . Fabnet Peak Effective % . | . . . Robots Rewired . | . . . Allies Hacked . | . . . Hacks Repelled . | . . . Allies | -11 -10 -10 -------- Run | Yrd Mat Min Total Allies . | . . . Largest Group . | . . . Highest-Rated Group . | . . . Highest-Rated Ally . | . . . Total Orders . | . . . Ally Attacks . | . . . Total Damage . | . . . Kills . | . . . Allies Corrupted . | . . . Allies Melted . | . . . Intel | -11 -10 -10 ------- Run | Yrd Mat Min Active Infowar (turns) 1268 | 40 909 319 Terrain 191 | 40 151 . Structural 117 | . 117 . T.N.C. 960 | . 641 319 Robot Analysis Total 1 | . 1 . Derelict Logs Recovered . | . . . Drone Launches . | . . . Drone Recoveries . | . . . Exploration | -11 -10 -10 ------------- Run | Yrd Mat Min Turns Passed 1435 | 140 976 319 Spaces Moved 632 | 53 381 198 Core 18 | 9 9 . Treads 252 | 44 208 . Legs 362 | . 164 198 Wheels . | . . . Hover . | . . . Flight . | . . . Fastest Speed 50 | 50 120 120 Average Speed 137 | 154 144 120 Slowest Speed 250 | 250 200 120 Overloaded Moves . | . . . Propulsion Burnouts . | . . . Robots Hopped . | . . . Potential Cave-ins . | . . . Cave-ins Triggered . | . . . Exploration Rate (%) 35 | 5 71 31 Regions Visited 2 Branch Regions 1 Pre-discovered Areas . | . . . Known Exits Taken . | . . . Unknown Exits Taken 2 | 1 1 . Scrap Searched 1 | . . 1 Spaces Dug . | . . . Terrain Destroyed . | . . . Melee . | . . . Projectile . | . . . AOE . | . . . Terrain Rammed . | . . . Walls Destroyed . | . . . Machines Disabled . | . . . Actions | -11 -10 -10 --------- Run | Yrd Mat Min Total 967 | 77 646 244 Wait 161 | . 153 8 Move 630 | 52 380 198 Hop . | . . . Pick Up 6 | . 5 1 Fast Attach 17 | 7 9 1 Attach 1 | . 1 . Detach 2 | . 2 . Swap 9 | 1 3 5 Drop 8 | . 1 7 Fire 125 | 17 84 24 Melee 8 | . 8 . Ram . | . . . Kick . | . . . Crush . | . . . Escape Stasis . | . . . Rewire . | . . . Trap . | . . . Miscellaneous . | . . . Route ------- -11/Scrapyard -10/Materials (discovered 2 exits: [*Mat] / [*Min]) -10/Mines (discovered 1 exit: [*Mat]) History --------- Turn | Location | Event 15 | -11/Scrapyard | Discovered new exit (range 16) 141 | -11/Scrapyard | Entered Materials 142 | -10/Materials | Met a group of wandering Federalists 315 | -10/Materials | Build established: Mutant 684 | -10/Materials | Core integrity fell below 50% 721 | -10/Materials | Lost 4 parts (2n2w) 792 | -10/Materials | Repaired Lgt. Assault Rifle 803 | -10/Materials | Discovered new exit (range 8) 1041 | -10/Materials | Build established: Scavenger-Mutant 1097 | -10/Materials | Discovered new exit (range 5) 1117 | -10/Materials | Entered Mines 1121 | -10/Mines | Met a Derelict bent on vengeance 1129 | -10/Mines | Discovered new exit (range 10) 1260 | -10/Mines | Core integrity fell below 20% 1436 | -10/Mines | Destroyed by S-10 Pest with Light Assault Rifle Last Messages --------------- S-10 Pest destroyed. Acquired 25 matter. Dropped Lgt. Assault Rifle. K-01 Serf cleans the Core Extractor. Dropped Aluminum Leg. R-06 Scavenger collects Lgt. Assault Rifle. Dropped Aluminum Leg. Acquired 19 matter. K-01 Serf collects debris. R-06 Scavenger collects Flight Unit. T-07 Excavator is excavating. S-10 Pest destroyed. T-07 Excavator is excavating. S-10 Pest destroyed. T-07 Excavator is excavating. S-10 Pest destroyed. T-07 Excavator is excavating. Acquired 19 matter. Acquired 13 matter. T-07 Excavator is excavating. Map ----- +----------------------------------------------------+ | | | | | | | | | | | | | | | | | | | | | | | | | | | | | ?????????????????????????????????????????? | | ?????????????????????????????????????????? | | ?????????????????????????????????????????? | | ????????????###??????????????????????????? | | ????????????# ????????????????????????? | | ??????????? ???????????????????????? | | ????????????? ?????????????????? #?? | | ????????????????# ############ #?? | | ?????????????????# s ""???? | | ?????????????????# s ""???? | | ?????????????????## ####s####### ""???? | | ????????????????????????#@#??????????????? | | ????????????????????????# #??????????????? | | ????????????????????????# #??????????????? | | ????????????????????????# #??????????????? | | ????????????????????????# #??????????????? | | ????????????????????????#u#??????????????? | | ????????????????????????# #??????????????? | | ????????????????????????# #??????????????? | | ??????????????########### #??????????????? | | ??????????????# !*%== #??????????????? | | ??????????????# #########r###????????????? | | ??????????????# ## == #????????????? | | ??????????????# ## = #????????????? | | ??????????????# ## """ """ #????????????? | | ??????????????# ## """ """ #????????????? | | ??????????????# ## """ """ #????????????? | | ??????????????# ## #????????????? | | ??????????????# ## #????????????? | | ????????????### ##### #######????????????? | | #???????????# #???# #??????????????????? | | ##??????????# ###???# #??????????????????? | | ##?????????# #?????# #??????????????????? | | ########### #?????# #??????????????????? | | #?????# ##?????????????????? | | ##############????## #?????????????????? | +----------------------------------------------------+ Best States ------------- Heat Dissipation 25 Energy Generation 10 Energy Capacity 250 Matter Stores 300 Matter Capacity 300 Sight Range 16 Terrain Scan Range 16 Terrain Scan Density 10 Armor Coverage 150 Evasion (%) 55 Recoil Reduction 2 Item Schematics ----------------- None Robot Schematics ------------------ None Fabricated ------------ Nothing Repaired ---------- Lgt. Assault Rifle | 2% | -10/Materials Alien Tech Used ----------------- None Achievements -------------- None Challenges ------------ None Game ------ Seed CryofiberShadeSegregator Manual? 0 Play Time 00:25:39 Cumulative 43.3 hours Start 2025.07.02 @ 12:52:10 End 2025.07.02 @ 13:16:05 Sessions 1 Manual Loads 0 Difficulty Rogue Special Mode None Game No. 27 Rogue 27 Adventurer 0 Explorer 0 Win Type - Total 0 Types 0/0/0/0/0/0/0/0/0/0 Lore% 14 Gallery% 30 Achievement% 30 Wizard Run 0 Options --------- Layout 1 ASCII 0 Keyboard 0 Movement Mouse Keybinds 0 Fullscreen 2 Font 32/SmallcapsGlow Map View 50x35 Zoom Use 0% Tactical HUD 0 Map Filters NONE Filters NONE Steam 1 RUN: 834a0bee-f7bf-4a6f-b169-5cff8af0e9d3